bitfinex-derivatives/quotes_BTCF0:USTF0_20250912
["timestamp","ask_amount","ask_price","bid_price","bid_amount"]
[1757702868760,0.05603457,116550.0,116540.0,2.31985691]
[1757702869257,0.05603457,116550.0,116540.0,1.11635337]
[1757702869560,0.05603457,116550.0,116540.0,2.31985691]
[1757702871765,0.05603457,116550.0,116540.0,2.40561491]
[1757702880163,0.05603457,116550.0,116540.0,1.98831137]
[1757702880461,0.05603457,116550.0,116540.0,2.40561491]
[1757702880664,0.19513575,116550.0,116540.0,1.98807137]
[1757702880867,0.19513575,116550.0,116540.0,2.12717255]
[1757702881060,0.19513575,116550.0,116540.0,1.90231337]
[1757702881369,0.19513575,116550.0,116540.0,2.04141455]
[1757702881774,0.19513575,116550.0,116540.0,2.18051573]
[1757702882163,0.05603457,116550.0,116540.0,2.18051573]
[1757702882565,0.19513575,116550.0,116540.0,2.18051573]
[1757702883071,0.19513575,116550.0,116540.0,1.90231337]
[1757702883373,0.19513575,116550.0,116540.0,2.18051573]
[1757702884470,0.19513575,116550.0,116540.0,2.08779807]
[1757702884471,0.05603457,116550.0,116540.0,2.08779807]
[1757702884868,0.05603457,116550.0,116540.0,1.90231337]
[1757702885072,0.05603457,116550.0,116540.0,2.08779807]
[1757702885672,0.24151927,116550.0,116540.0,2.08771807]
[1757702885974,0.05603457,116550.0,116540.0,2.08771807]
[1757702887174,0.05603457,116550.0,116540.0,2.35896077]
[1757702889370,0.05603457,116550.0,116540.0,2.3390874]
[1757702890276,0.05603457,116550.0,116540.0,2.35867989]
[1757702890968,0.05603457,116550.0,116540.0,1.98771049]
[1757702891168,0.05603457,116550.0,116540.0,2.35867989]
[1757702893074,0.05603457,116550.0,116540.0,2.3390874]
[1757702893273,0.05603457,116550.0,116540.0,2.35919652]
[1757702899179,0.05603457,116550.0,116540.0,1.57331652]
[1757702899367,0.05603457,116550.0,116540.0,2.35903652]
[1757702899780,0.05603457,116550.0,116540.0,1.57331652]
[1757702900382,0.05603457,116550.0,116540.0,2.35899652]
[1757702905583,0.05603457,116550.0,116540.0,1.57331652]
[1757702905784,0.05603457,116550.0,116540.0,2.35891652]
[1757702906080,0.05603457,116550.0,116540.0,1.57331652]
[1757702906278,0.05603457,116550.0,116540.0,2.35891652]
[1757702911792,0.05603457,116550.0,116540.0,1.57331652]
[1757702911984,0.05603457,116550.0,116540.0,2.35887652]
[1757702915897,0.05603457,116550.0,116540.0,1.98790712]
[1757702916087,0.05603457,116550.0,116540.0,2.35887652]
[1757702916391,0.05603457,116550.0,116540.0,1.57331652]
[1757702916592,0.05603457,116550.0,116540.0,2.35879652]
[1757702928708,0.05603457,116550.0,116540.0,1.57331652]
[1757702928910,0.05603457,116550.0,116540.0,1.20234712]
[1757702929116,0.05603457,116550.0,116540.0,1.90186912]
[1757702929412,0.05603457,116550.0,116540.0,1.57331652]
[1757702929613,0.05603457,116550.0,116540.0,2.35859652]
[1757702929807,0.05603457,116550.0,116540.0,1.57331652]
[1757702930018,0.05603457,116550.0,116540.0,2.35859652]
[1757702930204,0.05603457,116550.0,116540.0,1.57331652]
[1757702930404,0.05603457,116550.0,116540.0,2.35859652]
[1757702933110,0.05603457,116550.0,116540.0,1.48755852]
[1757702933312,0.05603457,116550.0,116540.0,2.35855642]
[1757702934401,0.05603457,116550.0,116540.0,2.08731382]
[1757702934607,0.05603457,116550.0,116540.0,2.08727382]
[1757702934806,0.05603457,116550.0,116540.0,1.90178912]
[1757702935018,0.05603457,116550.0,116540.0,2.08727382]
[1757702936920,0.24151927,116550.0,116540.0,2.08727382]
[1757702937614,0.05603457,116550.0,116540.0,2.08727382]
[1757702940420,0.05603457,116550.0,116540.0,2.17303182]
[1757702940623,0.05603457,116550.0,116540.0,2.08727382]
[1757702941823,0.05603457,116550.0,116540.0,2.27275852]
[1757702942023,0.05603457,116550.0,116540.0,2.08727382]
[1757702944418,0.19514467,116550.0,116540.0,2.18000932]
[1757702944916,0.33425477,116550.0,116540.0,1.11658912]
[1757702945116,0.34694477,116550.0,116540.0,2.04077922]
[1757702946024,0.06872457,116550.0,116540.0,2.04077922]
[1757702946225,0.34694477,116550.0,116540.0,2.04077922]
[1757702946525,0.34694477,116550.0,116540.0,1.11658912]
[1757702946724,0.59694477,116550.0,116540.0,1.90162912]
[1757702947026,0.59694477,116550.0,116540.0,2.04073922]
[1757702948123,0.59694477,116550.0,116540.0,1.25569922]
[1757702948331,1.11893487,116550.0,116540.0,0.7]
[1757702948523,0.03526,116540.0,116530.0,0.00507371]
[1757702948829,1.52208,116530.0,116520.0,0.00156756]
[1757702949028,2.32996941,116530.0,116520.0,0.18156756]
[1757702949233,2.57996941,116530.0,116520.0,0.00156756]
[1757702949728,2.6470569,116530.0,116520.0,0.00156756]
[1757702950035,3.1820969,116530.0,116520.0,0.00156756]
[1757702950222,1.9797266,116530.0,116520.0,0.03743756]
[1757702950526,0.23026216,116530.0,116520.0,0.19651592]
[1757702950723,0.09115206,116530.0,116520.0,0.69642602]
[1757702951022,0.06907206,116530.0,116520.0,1.28642602]
[1757702951432,0.00198457,116530.0,116520.0,1.67553612]
[1757702951930,0.00198457,116530.0,116520.0,1.76130882]
[1757702953832,0.00198457,116530.0,116520.0,1.62219872]
[1757702954431,0.00198457,116530.0,116520.0,1.76130882]
[1757702956137,0.00198457,116530.0,116520.0,1.34397852]
[1757702956432,0.00198457,116530.0,116520.0,1.62219872]
[1757702956735,0.00198457,116530.0,116520.0,1.76130882]
[1757702958838,0.06769985,116550.0,116530.0,0.03587]
[1757702959138,0.1391101,116540.0,116530.0,1.5311001]
[1757702959332,0.1391101,116540.0,116530.0,1.8919001]
[1757702960038,0.1391101,116540.0,116530.0,1.75279]
[1757702960231,0.1391101,116540.0,116530.0,1.8919001]
[1757702960826,0.1401101,116540.0,116530.0,1.8919001]
[1757702961027,0.1411101,116540.0,116530.0,1.8919001]
[1757702961431,0.1411101,116540.0,116530.0,1.8923401]
[1757702961632,0.1411101,116540.0,116530.0,1.1057801]
[1757702961929,0.2802202,116540.0,116530.0,1.8922601]
[1757702962634,0.2802202,116540.0,116530.0,1.5314601]
[1757702963135,0.3023002,116540.0,116530.0,0.60587]
[1757702963433,0.3023002,116540.0,116530.0,1.5316601]
[1757702963731,0.6914103,116540.0,116530.0,1.39251]
[1757702964131,0.5523002,116540.0,116530.0,1.39251]
[1757702964433,0.5523002,116540.0,116530.0,1.5316201]
[1757702965234,0.5523002,116540.0,116530.0,1.39251]
[1757702965435,0.5523002,116540.0,116530.0,1.5316201]
[1757702967025,0.5523002,116540.0,116530.0,0.60587]
[1757702967236,0.5523002,116540.0,116530.0,1.39231]
[1757702967437,0.6914103,116540.0,116530.0,0.60587]
[1757702967630,0.6914103,116540.0,116530.0,1.39227]
[1757702968136,0.6914103,116540.0,116530.0,0.60587]
[1757702968638,0.6914103,116540.0,116530.0,1.39239]
[1757702969638,0.56935807,116540.0,116530.0,1.39239]
[1757702969825,0.70846817,116540.0,116530.0,1.39239]
[1757702970338,0.70846817,116540.0,116530.0,0.60587]
[1757702970636,1.89589462,116540.0,116510.0,0.39920637]
[1757702970837,0.4576039,116520.0,116510.0,0.99182637]
[1757702971639,0.7076039,116520.0,116510.0,0.99182637]
[1757702972034,0.7076039,116520.0,116510.0,0.63102637]
[1757702972742,0.7120139,116520.0,116510.0,0.57618262]
[1757702973151,0.7114483,116520.0,116510.0,0.57618262]
[1757702973442,0.7070383,116520.0,116510.0,0.59880262]
[1757702973634,0.73506108,116520.0,116510.0,0.59880262]
[1757702973834,0.7070383,116520.0,116510.0,0.59880262]
[1757702974346,1.09585753,116520.0,116510.0,0.59880262]
[1757702974543,1.16472106,116520.0,116510.0,0.59880262]
[1757702974736,1.16913106,116520.0,116510.0,0.57618262]
[1757702975144,1.16913106,116520.0,116510.0,0.16618262]
[1757702975441,1.16913106,116520.0,116510.0,0.00618262]
[1757702976039,1.19995916,116520.0,116510.0,0.00618262]
[1757702976838,1.98779916,116520.0,116510.0,0.00618262]
[1757702977033,1.98779916,116520.0,116510.0,2.62e-06]
[1757702977238,2.03403299,116520.0,116480.0,0.01311]
[1757702977443,0.7948203,116490.0,116480.0,0.61573]
[1757702977749,1.62767669,116490.0,116480.0,0.61573]
[1757702977944,1.08999669,116490.0,116480.0,0.58]
[1757702978144,1.12082479,116490.0,116480.0,0.58]
[1757702978347,1.90890479,116490.0,116480.0,0.58]
[1757702978545,1.12082479,116490.0,116460.0,0.01311]
[1757702978742,0.7948203,116470.0,116460.0,0.55573]
[1757702978941,1.62848675,116470.0,116460.0,0.55573]
[1757702979251,1.48929665,116470.0,116460.0,0.55573]
[1757702979443,1.55803873,116470.0,116460.0,0.55573]
[1757702979754,2.32113411,116470.0,116460.0,0.52]
[1757702979942,1.56388221,116470.0,116460.0,0.52]
[1757702980247,2.35192221,116470.0,116460.0,0.175]
[1757702980948,1.57928794,116470.0,116460.0,0.17]
[1757702981145,2.09733009,116470.0,116460.0,0.03573]
[1757702981345,2.09729009,116470.0,116460.0,0.03573]
[1757702981946,1.30933009,116470.0,116460.0,0.03573]
[1757702982240,2.09733009,116470.0,116440.0,0.0948378]
[1757702982441,0.6792895,116450.0,116440.0,0.54573]
[1757702982643,1.64801883,116450.0,116440.0,0.54573]
[1757702982843,1.64801883,116450.0,116440.0,0.53262]
[1757702983350,1.23068853,116450.0,116440.0,0.53262]
[1757702983551,2.00881883,116450.0,116440.0,0.53262]
[1757702983752,2.00881883,116450.0,116440.0,0.53562]
[1757702984152,2.00881883,116450.0,116440.0,0.53762]
[1757702985654,1.59140853,116450.0,116440.0,0.53762]
[1757702985848,1.71691863,116450.0,116440.0,0.55073]
[1757702986053,0.78988853,116450.0,116440.0,0.9398401]
[1757702986252,1.71691863,116450.0,116440.0,0.9398401]
[1757702986654,1.71691863,116450.0,116440.0,0.80073]
[1757702986951,0.92899863,116450.0,116440.0,0.9398401]
[1757702987155,1.71695863,116450.0,116440.0,0.9398401]
[1757702987342,1.19436853,116450.0,116440.0,0.80073]
[1757702987542,0.04568853,116450.0,116440.0,1.2180603]
[1757702988052,0.0176693,116450.0,116440.0,1.2180603]
[1757702990356,0.0177193,116450.0,116440.0,1.2180603]
[1757702990562,0.0177193,116450.0,116440.0,1.6646919]
[1757702991052,0.0177193,116450.0,116440.0,2.4526519]
[1757702991258,0.0177193,116450.0,116440.0,2.3668203]
[1757702991454,0.0177193,116450.0,116440.0,1.5788603]
[1757702991655,0.0177193,116450.0,116440.0,2.3668203]
[1757702991958,0.0177193,116450.0,116440.0,2.3667803]
[1757702993060,0.0177193,116450.0,116440.0,2.3667003]
[1757702993356,0.0177193,116450.0,116440.0,1.5788603]
[1757702993562,0.0177193,116450.0,116440.0,2.3667003]
[1757702993859,0.0177193,116450.0,116440.0,1.2180603]
[1757702994059,0.0177193,116450.0,116440.0,1.8666702]
[1757702994260,0.0177193,116450.0,116440.0,1.8667502]
[1757702995061,0.5409294,116450.0,116440.0,1.4776401]
[1757702995261,0.5409294,116450.0,116440.0,1.4776801]
[1757702995462,0.5409294,116450.0,116440.0,0.8289502]
[1757702995667,0.5409294,116450.0,116440.0,1.4777201]
[1757702996361,0.42944974,116450.0,116440.0,1.4777201]
[1757702996664,0.56855984,116450.0,116440.0,0.6898401]
[1757702997760,0.42944974,116450.0,116440.0,0.6898401]
[1757702997958,0.54525984,116450.0,116440.0,0.8289502]
[1757702998362,0.54525984,116450.0,116440.0,0.55073]
[1757702998556,0.18445984,116450.0,116440.0,1.6167102]
[1757702998755,0.04534974,116450.0,116440.0,1.6167102]
[1757702999165,0.04534974,116450.0,116440.0,0.8289502]
[1757702999365,0.04534974,116450.0,116440.0,1.6165902]
[1757702999661,0.04534974,116450.0,116440.0,1.6155902]
[1757702999966,0.04534974,116450.0,116440.0,1.6145902]
[1757703000158,0.04534974,116450.0,116440.0,1.6145102]
[1757703000359,0.04534974,116450.0,116440.0,1.33629]
[1757703000758,0.04534974,116450.0,116440.0,1.7546203]
[1757703000963,0.04534974,116450.0,116440.0,1.7556203]
[1757703001361,0.04534974,116450.0,116440.0,2.0056203]
[1757703001567,0.03068598,116470.0,116460.0,0.02931]
[1757703001768,0.03068598,116470.0,116460.0,1.78397105]
[1757703001970,0.57682991,116480.0,116460.0,1.78397105]
[1757703002158,0.73924001,116480.0,116470.0,0.1615601]
[1757703002467,0.04623383,116480.0,116470.0,0.8937802]
[1757703002661,0.1391101,116480.0,116470.0,0.8937802]
[1757703002966,0.74685238,116490.0,116470.0,1.6820602]
[1757703003162,0.77015238,116490.0,116480.0,0.1615601]
[1757703003367,0.83849148,116490.0,116480.0,0.9498401]
[1757703003561,0.79225765,116490.0,116480.0,0.9498401]
[1757703003763,0.79225765,116490.0,116480.0,0.81073]
[1757703004062,0.79225765,116490.0,116480.0,0.9499601]
[1757703004467,0.70072159,116490.0,116480.0,0.81085]
[1757703005671,0.70172159,116490.0,116480.0,0.81085]
[1757703006268,0.70072159,116490.0,116480.0,0.81085]
[1757703006469,0.68604159,116490.0,116480.0,1.30964414]
[1757703006657,0.68604159,116490.0,116480.0,0.52124414]
[1757703006856,0.50035745,116490.0,116480.0,1.30948414]
[1757703007060,0.6552804,116490.0,116480.0,1.30948414]
[1757703007968,0.01715716,116490.0,116480.0,1.50375059]
[1757703008269,0.01715716,116490.0,116480.0,2.21455059]
[1757703008669,0.01715716,116490.0,116480.0,1.41772828]
[1757703009072,0.01715716,116490.0,116480.0,1.83456]
[1757703009273,0.01715716,116490.0,116480.0,2.02024414]
[1757703009773,0.01715716,116490.0,116480.0,2.02124414]
[1757703010266,0.01715716,116490.0,116480.0,0.68656]
[1757703010467,0.01715716,116490.0,116480.0,0.87224414]
[1757703010678,0.2261413,116490.0,116480.0,1.41124414]
[1757703010875,0.04045716,116490.0,116480.0,1.41124414]
[1757703011173,0.04045716,116490.0,116480.0,0.62224414]
[1757703011378,0.04045716,116490.0,116480.0,1.41124414]
[1757703013286,0.2391613,116490.0,116480.0,1.39805414]
[1757703014283,0.2391613,116490.0,116480.0,0.60913414]
[1757703014584,0.2391613,116490.0,116480.0,1.21237]
[1757703014782,0.2391613,116490.0,116480.0,1.39805414]
[1757703016285,0.2391613,116490.0,116480.0,1.21237]
[1757703016781,1.06166118,116490.0,116480.0,0.42345]
[1757703016982,1.06166118,116490.0,116480.0,0.301]
[1757703017284,1.09242237,116490.0,116480.0,0.301]
[1757703017786,1.88114237,116490.0,116480.0,0.301]
[1757703019383,0.72105409,116490.0,116480.0,0.301]
[1757703019686,0.90673823,116490.0,116480.0,0.32302]
[1757703019885,0.90673823,116490.0,116480.0,0.301]
[1757703020285,0.72105409,116490.0,116480.0,0.32302]
[1757703020484,0.90673823,116490.0,116480.0,0.32302]
[1757703020887,0.72105409,116490.0,116480.0,0.32302]
[1757703021185,1.09242237,116490.0,116480.0,0.301]
[1757703021785,1.88182237,116490.0,116480.0,0.301]
[1757703022084,1.09242237,116490.0,116480.0,0.301]
[1757703022391,1.88190237,116490.0,116480.0,0.301]
[1757703023394,1.85114118,116490.0,116480.0,0.301]
[1757703024390,1.85106118,116490.0,116480.0,0.301]
[1757703025490,1.06166118,116490.0,116480.0,0.301]
[1757703025690,1.85106118,116490.0,116480.0,0.301]
[1757703026088,1.88182237,116490.0,116480.0,0.301]
[1757703026388,1.06166118,116490.0,116480.0,0.301]
[1757703026593,1.85078118,116490.0,116480.0,0.301]
[1757703027095,1.88154237,116490.0,116480.0,0.301]
[1757703027393,1.88146237,116490.0,116480.0,0.301]
[1757703028297,1.50997409,116490.0,116480.0,0.301]
[1757703028597,1.88134237,116490.0,116480.0,0.301]
[1757703029097,1.50997409,116490.0,116480.0,0.301]
[1757703029295,1.88134237,116490.0,116480.0,0.301]
[1757703029595,1.85058118,116490.0,116480.0,0.301]
[1757703030890,1.2294929,116490.0,116480.0,0.32226]
[1757703031094,1.2294929,116490.0,116480.0,0.301]
[1757703031095,1.60086118,116490.0,116480.0,0.301]
[1757703031494,1.60078118,116490.0,116480.0,0.301]
[1757703032590,1.2294129,116490.0,116480.0,0.301]
[1757703032790,1.60078118,116490.0,116480.0,0.301]
[1757703033494,0.62566519,116490.0,116480.0,0.57226]
[1757703033699,0.60850803,116490.0,116480.0,0.75794414]
[1757703033994,0.39712,116490.0,116480.0,0.77105414]
[1757703034199,0.0233,116490.0,116480.0,0.77105414]
[1757703034597,0.62923039,116500.0,116480.0,1.31753828]
[1757703034894,0.65140039,116500.0,116490.0,0.02126]
[1757703035100,0.65140039,116500.0,116490.0,0.74694414]
[1757703036000,0.46571625,116500.0,116490.0,0.75380414]
[1757703036196,0.65140039,116500.0,116490.0,0.74694414]
[1757703036401,0.65140039,116500.0,116490.0,0.56126]
[1757703036902,0.83708453,116500.0,116490.0,0.56126]
[1757703037200,0.65140039,116500.0,116490.0,0.56126]
[1757703037997,0.46571625,116500.0,116490.0,0.56126]
[1757703038201,0.65140039,116500.0,116490.0,0.56126]
[1757703039303,0.46571625,116500.0,116490.0,0.74694414]
[1757703039504,0.65140039,116500.0,116490.0,0.74694414]
[1757703040506,0.65140039,116500.0,116490.0,0.56126]
[1757703040908,0.83708453,116500.0,116490.0,0.56226]
[1757703041310,0.65140039,116500.0,116490.0,0.56226]
[1757703041510,0.46571625,116500.0,116490.0,0.56226]
[1757703041811,0.65140039,116500.0,116490.0,0.56226]
[1757703043309,0.46571625,116500.0,116490.0,0.56226]
[1757703043510,0.65140039,116500.0,116490.0,0.56226]
[1757703043712,1.44040039,116500.0,116490.0,0.56226]
[1757703044313,1.25471625,116500.0,116490.0,0.56226]
[1757703044509,0.65140039,116500.0,116490.0,0.56226]
[1757703044811,1.44016039,116500.0,116490.0,0.56226]
[1757703045909,1.44008039,116500.0,116490.0,0.56226]
[1757703047317,1.25439625,116500.0,116490.0,0.56226]
[1757703047511,1.44008039,116500.0,116490.0,0.56226]
[1757703050014,1.25439625,116500.0,116490.0,0.56226]
[1757703050214,1.44008039,116500.0,116490.0,0.56226]
[1757703051716,0.65140039,116500.0,116490.0,0.74794414]
[1757703052015,1.43996039,116500.0,116490.0,0.76105414]
[1757703052218,1.43996039,116500.0,116490.0,0.56226]
[1757703053419,1.25427625,116500.0,116490.0,0.56226]
[1757703053618,1.43996039,116500.0,116490.0,0.56226]
[1757703053820,1.43996039,116500.0,116490.0,0.74794414]
[1757703054018,0.65140039,116500.0,116490.0,0.74794414]
[1757703054614,0.46571625,116500.0,116490.0,0.74794414]
[1757703055915,0.55950414,116510.0,116500.0,0.01311]
[1757703055916,0.37382,116510.0,116500.0,0.01311]
[1757703056114,0.58161414,116510.0,116500.0,0.78178414]
[1757703056911,0.65044243,116510.0,116500.0,0.76867414]
[1757703060624,0.65044243,116510.0,116500.0,0.58299]
[1757703062122,0.65044243,116510.0,116500.0,0.76867414]
[1757703063730,0.65044243,116510.0,116500.0,0.58299]
[1757703064327,1.43784243,116510.0,116500.0,0.58299]
[1757703065126,0.65044243,116510.0,116500.0,0.58299]
[1757703066628,0.74320975,116510.0,116500.0,0.72221573]
[1757703067126,0.76938251,116510.0,116500.0,0.72221573]
[1757703069223,0.76938251,116510.0,116500.0,0.56]
[1757703069224,1.15860824,116510.0,116500.0,0.56]
[1757703070016,1.15860824,116510.0,116500.0,0.11]
[1757703070222,0.03535,116480.0,116470.0,0.21499918]
[1757703070416,0.03535,116480.0,116470.0,0.70463]
[1757703070417,0.84008533,116480.0,116470.0,0.70463]
[1757703070622,1.09008533,116480.0,116470.0,0.51]
[1757703071428,1.87704533,116480.0,116470.0,0.51]
[1757703071733,1.87704533,116480.0,116470.0,0.513]
[1757703072118,1.09008533,116480.0,116470.0,0.515]
[1757703072421,1.87716533,116480.0,116470.0,0.515]
[1757703072734,1.87720533,116480.0,116470.0,0.515]
[1757703073829,1.20948814,116480.0,116470.0,0.67721573]
[1757703074125,0.42240814,116480.0,116470.0,0.81644146]
[1757703074332,1.34871387,116480.0,116470.0,0.67721573]
[1757703074720,1.62716533,116480.0,116470.0,0.515]
[1757703075228,1.87716533,116480.0,116470.0,0.515]
[1757703076133,1.87716533,116480.0,116470.0,0.045]
[1757703076333,1.09008533,116480.0,116470.0,0.045]
[1757703076533,1.87732533,116480.0,116470.0,0.045]
[1757703077235,1.87732533,116480.0,116470.0,0.005]
[1757703078034,1.87708533,116480.0,116470.0,0.005]
[1757703078630,1.59863387,116480.0,116470.0,0.005]
[1757703078936,1.87708533,116480.0,116470.0,0.005]
[1757703079334,0.03535,116450.0,116440.0,0.04276738]
[1757703079534,1.60082719,116450.0,116440.0,0.54299]
[1757703079834,1.46160146,116450.0,116440.0,0.68221573]
[1757703080030,1.60082719,116450.0,116440.0,0.52]
[1757703080437,1.60082719,116450.0,116440.0,0.525]
[1757703081027,1.60949205,116450.0,116440.0,0.531]
[1757703081228,1.19181486,116450.0,116440.0,0.531]
[1757703081438,0.82249205,116450.0,116440.0,0.531]
[1757703081637,1.60977205,116450.0,116440.0,0.529]
[1757703082837,1.60977205,116450.0,116440.0,0.526]
[1757703083439,0.82249205,116450.0,116440.0,0.526]
[1757703083638,1.2598124,116450.0,116440.0,0.93703573]
[1757703083834,1.39903813,116450.0,116440.0,0.93703573]
[1757703084035,1.39899813,116450.0,116440.0,0.93703573]
[1757703084239,0.46410754,116450.0,116440.0,1.07626146]
[1757703084541,1.25110754,116450.0,116440.0,1.07626146]
[1757703084936,1.39033327,116450.0,116440.0,1.07626146]
[1757703086040,0.46410754,116450.0,116440.0,1.08812146]
[1757703086641,0.60333327,116450.0,116440.0,1.07626146]
[1757703087838,0.46410754,116450.0,116440.0,1.08812146]
[1757703089147,0.60333327,116450.0,116440.0,1.08812146]
[1757703089450,0.60333327,116450.0,116440.0,1.07626146]
[1757703090146,0.46410754,116450.0,116440.0,1.07626146]
[1757703090447,0.60333327,116450.0,116440.0,0.93703573]
[1757703091146,0.742559,116450.0,116440.0,0.93703573]
[1757703091345,0.46410754,116450.0,116440.0,0.93703573]
[1757703091546,0.742559,116450.0,116440.0,0.93703573]
[1757703092344,0.60333327,116450.0,116440.0,0.93703573]
[1757703092645,0.60333327,116450.0,116440.0,0.79781]
[1757703092849,0.60333327,116450.0,116440.0,0.93703573]
[1757703093245,0.46410754,116450.0,116440.0,0.93703573]
[1757703093441,0.60333327,116450.0,116440.0,0.93703573]
[1757703095747,0.60333327,116450.0,116440.0,1.07626146]
[1757703096149,0.60333327,116450.0,116440.0,0.93703573]
[1757703096845,0.60333327,116450.0,116440.0,0.79781]
[1757703097145,0.60333327,116450.0,116440.0,0.93703573]
[1757703097645,0.629494,116450.0,116440.0,1.08812146]
[1757703098248,0.49026827,116450.0,116440.0,1.07626146]
[1757703098448,0.629494,116450.0,116440.0,1.07626146]
[1757703098647,0.49026827,116450.0,116440.0,1.07626146]
[1757703098847,0.629494,116450.0,116440.0,1.07626146]
[1757703099354,0.629494,116450.0,116440.0,0.82626146]
[1757703100351,0.49026827,116450.0,116440.0,0.82626146]
[1757703100552,0.629494,116450.0,116440.0,0.82626146]
[1757703101653,1.416094,116450.0,116440.0,0.82626146]
[1757703101850,1.27686827,116450.0,116440.0,0.83812146]
[1757703102046,1.416094,116450.0,116440.0,0.83812146]
[1757703102652,0.629494,116450.0,116440.0,0.82626146]
[1757703103656,0.76871973,116450.0,116440.0,0.68703573]
[1757703104353,0.76871973,116450.0,116440.0,0.54781]
[1757703104558,0.76871973,116450.0,116440.0,0.68703573]
[1757703105257,0.90794546,116450.0,116440.0,0.54781]
[1757703105449,0.76871973,116450.0,116440.0,0.54781]
[1757703105955,0.76871973,116450.0,116440.0,0.68703573]
[1757703106461,0.49026827,116450.0,116440.0,0.68703573]
[1757703106757,0.76871973,116450.0,116440.0,0.68703573]
[1757703110961,1.55527973,116450.0,116440.0,0.68703573]
[1757703111862,1.416054,116450.0,116440.0,0.68703573]
[1757703112057,1.69450546,116450.0,116440.0,0.54781]
[1757703112264,1.94450546,116450.0,116440.0,0.526]
[1757703113464,1.97530364,116450.0,116440.0,0.526]
[1757703114761,1.18874364,116450.0,116440.0,0.526]
[1757703114961,1.97530364,116450.0,116440.0,0.526]
[1757703115459,1.97630364,116450.0,116440.0,0.524]
[1757703115661,0.03641,116430.0,116400.0,0.15263573]
[1757703115862,0.67566146,116410.0,116400.0,0.61221]
[1757703116157,0.77784342,116410.0,116400.0,0.61221]
[1757703116758,0.77784342,116410.0,116400.0,0.75143573]
[1757703117160,0.77784342,116410.0,116400.0,0.61521]
[1757703117361,0.91706915,116410.0,116400.0,0.61521]
[1757703117666,1.56440342,116410.0,116400.0,0.61721]
[1757703118462,0.77784342,116410.0,116400.0,0.61721]
[1757703118660,1.56444342,116410.0,116400.0,0.75643573]
[1757703118860,0.38696073,116410.0,116400.0,1.29829719]
[1757703119060,0.3608,116410.0,116400.0,1.29829719]
[1757703119363,0.40124192,116420.0,116410.0,0.03562]
[1757703119561,0.42776528,116420.0,116410.0,0.61562]
[1757703119756,0.56699101,116420.0,116410.0,0.89407146]
[1757703120471,0.57559619,116420.0,116410.0,0.89407146]
[1757703120969,0.57759619,116420.0,116410.0,0.89507146]
[1757703121969,0.06896528,116420.0,116410.0,0.89507146]
[1757703122268,0.01951192,116420.0,116410.0,2.43173719]
[1757703122464,0.01951192,116420.0,116410.0,2.51759139]
[1757703122665,0.01951192,116420.0,116410.0,2.43173719]
[1757703124376,0.002,116420.0,116410.0,2.51759129]
[1757703124674,0.002,116420.0,116410.0,2.45144887]
[1757703126073,0.002,116420.0,116410.0,2.45140887]
[1757703126273,0.002,116420.0,116410.0,1.66480887]
[1757703126571,0.002,116420.0,116410.0,2.40536568]
[1757703129472,0.002,116420.0,116410.0,2.04456568]
[1757703130175,0.002,116420.0,116410.0,1.25796568]
[1757703130375,0.002,116420.0,116410.0,2.04452568]
[1757703132576,0.002,116420.0,116410.0,1.25796568]
[1757703132780,0.002,116420.0,116410.0,2.04448568]
[1757703133679,0.002,116420.0,116410.0,1.25796568]
[1757703133879,0.002,116420.0,116410.0,2.04448568]
[1757703136374,0.002,116420.0,116410.0,0.82214868]
[1757703136674,0.02493,116420.0,116410.0,1.60862868]
[1757703140378,0.002,116420.0,116410.0,2.24109978]
[1757703140685,0.3608,116450.0,116430.0,0.0858392]
[1757703140878,0.3608,116460.0,116450.0,0.03453]
[1757703140879,0.45193331,116460.0,116450.0,0.03453]
[1757703141073,0.4604318,116460.0,116450.0,0.790347]
[1757703141278,0.4604318,116460.0,116450.0,1.576787]
[1757703141481,0.38381,116460.0,116450.0,1.576787]
[1757703143586,0.38681,116460.0,116450.0,1.576787]
[1757703144181,0.38381,116460.0,116450.0,1.576787]
[1757703145692,0.38381,116460.0,116450.0,1.576707]
[1757703146488,0.38381,116460.0,116450.0,0.790347]
[1757703146677,0.38381,116460.0,116450.0,1.576707]
[1757703146883,0.38381,116460.0,116450.0,1.39089]
[1757703147083,0.38381,116460.0,116450.0,1.576707]
[1757703148088,0.38381,116460.0,116450.0,1.39089]
[1757703148292,0.38381,116460.0,116450.0,1.576707]
[1757703152088,0.02301,116460.0,116450.0,1.6625323]
[1757703152293,0.3608,116470.0,116460.0,0.03453]
[1757703152493,0.3608,116480.0,116470.0,0.03453]
[1757703152494,0.38381,116480.0,116470.0,0.03453]
[1757703152696,0.38381,116480.0,116470.0,1.536587]
[1757703152893,0.39217692,116480.0,116470.0,1.536587]
[1757703153192,0.38381,116480.0,116470.0,1.536587]
[1757703153587,0.38581,116480.0,116470.0,1.536587]
[1757703153895,0.38881,116480.0,116470.0,1.536587]
[1757703154398,0.3658,116480.0,116470.0,1.536587]
[1757703154591,0.3658,116480.0,116470.0,1.35077]
[1757703154791,0.3658,116480.0,116470.0,1.536587]
[1757703157299,0.005,116480.0,116470.0,1.536587]
[1757703159303,0.005,116480.0,116470.0,2.083204]
[1757703159795,0.005,116480.0,116470.0,1.296964]
[1757703160004,0.005,116480.0,116470.0,2.083084]
[1757703160296,0.005,116480.0,116470.0,1.897267]
[1757703160700,0.005,116480.0,116470.0,2.1688956]
[1757703161289,0.005,116480.0,116470.0,2.18614212]
[1757703161797,0.569627,116510.0,116500.0,0.03453]
[1757703161997,0.59619592,116510.0,116500.0,0.07453]
[1757703162202,0.60473025,116510.0,116500.0,0.62149]
[1757703162704,0.41037892,116510.0,116500.0,0.807307]
[1757703163198,0.41336629,116510.0,116500.0,0.807307]
[1757703163397,0.02955629,116510.0,116500.0,1.168107]
[1757703163701,0.02955629,116510.0,116500.0,1.616964]
[1757703163702,0.01,116510.0,116500.0,1.616964]
[1757703163903,0.01,116510.0,116500.0,2.402964]
[1757703164197,0.01,116510.0,116500.0,1.366964]
[1757703164399,0.01,116510.0,116500.0,1.78133]
[1757703164797,0.01005,116510.0,116500.0,1.967147]
[1757703165103,0.00305,116510.0,116500.0,2.152964]
[1757703165701,5e-05,116510.0,116500.0,2.152964]
[1757703169003,5e-05,116510.0,116500.0,1.366964]
[1757703169206,5e-05,116510.0,116500.0,2.152844]
[1757703169708,5e-05,116510.0,116500.0,1.366964]
[1757703169898,5e-05,116510.0,116500.0,1.42037]
[1757703169899,0.02288,116510.0,116500.0,1.42037]